fUSD/lending_fUSD_20250330
["ID","MTS","AMOUNT","RATE_DAILY","PERIOD"]
[356844584,1743318831010,-500.0,0.00045205,120]
[356844585,1743318831070,-500.0,0.00045205,120]
[356844586,1743318831128,-500.0,0.00045205,120]
[356844587,1743318831189,-500.0,0.00045479,120]
[356844588,1743318831250,-500.0,0.00045479,120]
[356844589,1743318831308,-500.0,0.00045479,120]
[356844590,1743318831367,-392.47271363,0.00045753,120]
[356844591,1743318831426,-500.0,0.00045753,120]
[356844592,1743318831485,-500.0,0.00045753,120]
[356844593,1743318831543,-500.0,0.00046027,120]
[356844594,1743318831598,-500.0,0.00046027,120]
[356844595,1743318831656,-500.0,0.00046301,120]
[356844596,1743318831712,-500.0,0.00046301,120]
[356844597,1743318831768,-500.0,0.00046575,120]
[356844598,1743318831825,-569.94458417,0.00046849,120]
[356844599,1743318831885,-865.98751316,0.00049004,120]
[356844600,1743318831939,-195.03204958,0.000499,120]
[356844601,1743318831993,-195.03204956,0.000499,120]
[356844602,1743318832050,-195.03204956,0.000499,120]
[356844603,1743318832112,-729360.78871404,0.000505,120]
[356844604,1743318832168,-246.47272098,0.000505,120]
[356844605,1743318832223,-150.0,0.000505,120]
[356844606,1743318832279,-150.0,0.00050613,120]
[356844607,1743318832334,-500.0,0.00050684,37]
[356844608,1743318832391,-231.48148,0.000508,120]
[356844609,1743318832454,-240.76474452,0.000508,120]
[356844610,1743318832508,-1000.0,0.00050999,120]
[356844611,1743318832564,-50000.0,0.00051,51]
[356844612,1743318832620,-50000.0,0.00051,41]
[356844613,1743318832677,-388.0,0.00051,120]
[356844614,1743318832735,-746.29039338,0.00051,120]
[356844615,1743318832791,-3562.36142,0.00051,120]
[356844616,1743318832844,-800.0,0.00051,90]
[356844617,1743318832899,-568.88,0.00051,99]
[356844618,1743318832957,-1000000.0,0.00051,120]
[356844619,1743318833014,-500000.0,0.00051,120]
[356844620,1743318833069,-209.25928,0.00051,120]
[356844621,1743318833127,-500.0,0.00051232,40]
[356844622,1743318833186,-647429.71359317,0.000515,120]
[356844623,1743318837502,-371.75,0.00046575,120]
[356844624,1743318837568,-352570.28640683,0.000515,120]
[356844625,1743318837622,-150.0,0.000515,120]
[356844626,1743318837677,-150.0,0.0005155,120]
[356844627,1743318837730,-501.83697099,0.0005178,43]
[356844628,1743318837787,-151.0,0.00051808,120]
[356844629,1743318837840,-1000.0,0.00051999,120]
[356844630,1743318837895,-50000.0,0.00052,52]
[356844631,1743318837951,-50000.0,0.00052,42]
[356844632,1743318838008,-1000000.0,0.00052,120]
[356844633,1743318838063,-1000000.0,0.00052,120]
[356844634,1743318838118,-545105.12662218,0.00052,120]
[356844635,1743318841375,-454894.87337782,0.00052,120]
[356844636,1743318841436,-231.48148,0.00052,120]
[356844637,1743318841499,-750.0,0.00052,120]
[356844638,1743318841561,-379.53012051,0.00052,120]
[356844639,1743318841622,-210.05314752,0.00052,120]
[356844640,1743318841683,-200.0,0.00052,120]
[356844641,1743318841742,-500000.0,0.00052,120]
[356844642,1743318841802,-150.0,0.00052,52]
[356844643,1743318841861,-999.0,0.00052356,120]
[356844644,1743318841918,-999.0,0.00052356,120]
[356844645,1743318841975,-999.0,0.00052356,120]
[356844646,1743318842035,-999.0,0.00052356,120]
[356844647,1743318842097,-999.0,0.00052356,120]
[356844648,1743318842157,-999.0,0.00052356,120]
[356844649,1743318842216,-999.0,0.00052356,120]
[356844650,1743318842273,-999.0,0.00052356,120]
[356844651,1743318842329,-999.0,0.00052356,120]
[356844652,1743318842385,-999.0,0.00052356,120]
[356844653,1743318842440,-999.0,0.00052356,120]
[356844654,1743318842495,-999.0,0.00052356,120]
[356844655,1743318842550,-999.0,0.00052356,120]
[356844656,1743318842606,-999.0,0.00052356,120]
[356844657,1743318842660,-999.0,0.00052356,120]
[356844658,1743318842717,-169.19714274,0.00052356,120]
[356844659,1743318842775,-800.0,0.00052425,60]
[356844660,1743318842829,-2000.0,0.0005244,45]
[356844661,1743318842888,-150.0,0.00052488,120]
[356844662,1743318842951,-974.21075413,0.00052637,120]
[356844663,1743318843012,-1678.36924533,0.00052649,120]
[356844664,1743318843080,-974.21075413,0.00052651,120]
[356844665,1743318843150,-704.84811995,0.00052656,120]
[356844666,1743318843217,-990.53589596,0.00052663,120]
[356844667,1743318843281,-974.21075413,0.00052678,120]
[356844668,1743318843343,-1218.36758013,0.00052695,120]
[356844669,1743318843403,-11259.10066041,0.000527,120]
[356844670,1743318843465,-990.53589596,0.00052717,120]
[356844671,1743318843534,-223.76967867,0.00052717,120]
[356844672,1743318843596,-990.53589596,0.00052722,120]
[356844673,1743318843658,-876.48893401,0.0005273,120]
[356844674,1743318843721,-223.76967867,0.00052733,120]
[356844675,1743318843785,-1678.36924533,0.00052737,120]
[356844676,1743318843846,-1218.36758013,0.00052754,120]
[356844677,1743318843910,-704.84811995,0.00052764,120]
[356844678,1743318843971,-990.53589596,0.00052776,120]
[356844679,1743318844035,-1218.36758013,0.00052795,120]
[356844680,1743318844098,-704.84811995,0.00052802,120]
[356844681,1743318844162,-876.48893401,0.00052802,120]
[356844682,1743318844222,-223.76967867,0.00052805,120]
[356844683,1743318844282,-876.48893401,0.00052832,120]
[356844684,1743318844345,-1678.36924533,0.00052888,120]
[356844685,1743318844401,-172.35820289,0.0005289,120]
[356844686,1743318844460,-974.21075413,0.00052912,120]
[356844687,1743318844517,-223.76967867,0.00052914,120]
[356844688,1743318844574,-704.84811995,0.00052919,120]
[356844689,1743318844633,-200.0,0.00052929,120]
[356844690,1743318844692,-200.0,0.00052932,120]
[356844691,1743318844751,-1218.36758013,0.0005294,120]
[356844692,1743318844807,-1678.36924533,0.00052953,120]
[356844693,1743318844865,-1987458.5339694,0.0005296,120]
[356844694,1743318849732,-625.47,0.00045205,120]
[356844695,1743318849793,-625.47,0.00045479,120]
[356844696,1743318849853,-625.47,0.00045753,120]
[356844697,1743318849911,-625.47,0.00046027,120]
[356844698,1743318849969,-625.47,0.00046301,120]
[356844699,1743318850032,-625.47,0.00046575,120]
[356844700,1743318850093,-625.47,0.00046849,120]
[356844701,1743318850154,-625.47,0.00047123,120]
[356844702,1743318850347,-625.51,0.00047397,120]
[356844703,1743318850410,-1086603.1960306,0.0005296,120]
[356844704,1743318850469,-200.0,0.00052962,120]
[356844705,1743318850523,-876.48893401,0.00052969,120]
[356844706,1743318850575,-1000.0,0.00052999,120]
[356844707,1743318850633,-50000.0,0.00053,53]
[356844708,1743318850691,-50000.0,0.00053,43]
[356844709,1743318850743,-348.44258386,0.00053,120]
[356844710,1743318850796,-650.0,0.00053,60]
[356844711,1743318850851,-1437.09365831,0.00053,120]
[356844712,1743318850901,-482.9554476,0.00053,120]
[356844713,1743318850956,-500000.0,0.00053,120]
[356844714,1743318851014,-150.0,0.00053157,120]
[356844715,1743318851069,-231.48148,0.000532,120]
[356844716,1743318851124,-444.44444,0.000534,120]
[356844717,1743318851180,-150.0,0.000534,120]
[356844718,1743318851236,-150.0,0.00053425,120]
[356844719,1743318851292,-1000000.0,0.000535,120]
[356844720,1743318851347,-12500.0,0.000539,120]
[356844721,1743318851402,-182.96347817,0.00053998,120]
[356844722,1743318851461,-1000.0,0.00053999,120]
[356844723,1743318851519,-50000.0,0.00054,54]
[356844724,1743318851576,-300.0,0.00054,120]
[356844725,1743318851631,-237663.66394745,0.00054,120]
[356844726,1743318855423,-150.0,0.0005289,120]
[356844727,1743318855480,-762336.33605255,0.00054,120]
[356844728,1743318855537,-5000.0,0.00054,120]
[356844729,1743318855597,-286602.61,0.00054,120]
[356844730,1743318855654,-2932.14373957,0.00054,120]
[356844731,1743318855713,-154.0,0.00054,120]
[356844732,1743318855770,-231.48148,0.000544,120]
[356844733,1743318855831,-1000.0,0.00054499,120]
[356844734,1743318855892,-444.44444,0.000547,120]
[356844735,1743318855954,-150.0,0.000547,120]
[356844736,1743318856019,-105948.839258,0.000547,120]
[356844737,1743318856084,-1835050.14502988,0.00054785,120]
[356844738,1743318861574,-150.0,0.00053,53]
[356844739,1743318861770,-1164273.75460942,0.00054785,120]
[356844740,1743318861834,-675.1003607,0.00054785,120]
[356844741,1743318861891,-543825.95156224,0.00054785,120]
[356844742,1743318861947,-491539.06030934,0.00054785,120]
[356844743,1743318862004,-2022.0,0.0005479,60]
[356844744,1743318862063,-500.0,0.00054794,120]
[356844745,1743318862121,-222.05427784,0.00054794,120]
[356844746,1743318862192,150.0,0.00053157,120]
[356844747,1743318862265,150.0,0.000532,120]
[356844748,1743318862568,150.0,0.000534,120]
[356844749,1743318862972,150.0,0.00053425,120]
[356844750,1743318863086,150.0,0.000533,120]
[356844751,1743318863339,500.0,0.00045205,120]
[356844752,1743318863410,150.0,0.000535,120]
[356844753,1743318863542,150.0,0.00053325,120]
[356844754,1743318863606,500.0,0.00045479,120]
[356844755,1743318863820,150.0,0.000539,120]
[356844756,1743318863881,500.0,0.00045753,120]
[356844757,1743318864004,150.0,0.000534,120]
[356844758,1743318864104,500.0,0.00046027,120]
[356844759,1743318864257,150.0,0.00053998,120]
[356844760,1743318864349,500.0,0.00046301,120]
[356844761,1743318864599,534.5,0.00046575,120]
[356844762,1743318864669,150.0,0.00053999,120]
[356844763,1743318864728,150.0,0.000538,120]
[356844764,1743318865077,150.0,0.00054,54]
[356844765,1743318865332,150.0,0.00053898,120]
[356844766,1743318865577,150.0,0.000544,120]
[356844767,1743318865639,150.0,0.00053899,120]
[356844768,1743318867305,703.31,0.00045205,120]
[356844769,1743318867613,703.31,0.00045479,120]
[356844770,1743318867906,703.31,0.00045753,120]
[356844771,1743318868153,703.31,0.00046027,120]
[356844772,1743318868392,703.31,0.00046301,120]
[356844773,1743318868652,703.31,0.00046575,120]
[356844774,1743318868898,703.31,0.00046849,120]
[356844775,1743318869153,703.31,0.00047123,120]
[356844776,1743318869827,703.52,0.00047397,120]
[356844777,1743318870681,655.06441555,0.00044,120]
[356844778,1743318871016,18828.58972042,0.00044,41]
[356844779,1743318873980,1000.0,0.00054794,120]
[356844780,1743318881853,-150.0,0.00054795,120]
[356844781,1743318881912,-150.0,0.00054795,120]
[356844782,1743318881968,-202.90186895,0.00054795,120]
[356844783,1743318882024,-500.0,0.00054795,120]
[356844784,1743318882083,-500.0,0.00054795,120]
[356844785,1743318882141,-503.84058145,0.00054795,120]
[356844786,1743318882196,-500.0,0.00054795,120]
[356844787,1743318882252,-895.06586547,0.00054795,120]
[356844788,1743318882310,-150.0,0.00054795,120]
[356844789,1743318882368,-150.0,0.00054795,120]
[356844790,1743318882426,-202.05796478,0.00054795,120]
[356844791,1743318882484,-500.0,0.00054795,120]
[356844792,1743318882752,-504.53732657,0.00054795,120]
[356844793,1743318882812,-1059.0,0.00054795,120]
[356844794,1743318882869,-1059.0,0.00054795,120]
[356844795,1743318882921,-1059.0,0.00054795,120]
[356844796,1743318882976,-1059.0,0.00054795,120]
[356844797,1743318883032,-1059.0,0.00054795,120]
[356844798,1743318883092,-1059.0,0.00054795,120]
[356844799,1743318883149,-1059.0,0.00054795,120]
[356844800,1743318883208,-1059.0,0.00054795,120]
[356844801,1743318883266,-1059.0,0.00054795,120]
[356844802,1743318883324,-1059.0,0.00054795,120]
[356844803,1743318883383,-1059.0,0.00054795,120]
[356844804,1743318883444,-1059.0,0.00054795,120]
[356844805,1743318883503,-1059.0,0.00054795,120]
[356844806,1743318883570,-1059.0,0.00054795,120]
[356844807,1743318883630,-1059.0,0.00054795,120]
[356844808,1743318883692,-1059.0,0.00054795,120]
[356844809,1743318883754,-1059.0,0.00054795,120]
[356844810,1743318883814,-1059.0,0.00054795,120]
[356844811,1743318883872,-1059.0,0.00054795,120]
[356844812,1743318883929,-1078.52978417,0.00054795,120]
[356844813,1743318883990,-150.0,0.00054795,120]
[356844814,1743318884053,-201.90265309,0.00054795,120]
[356844815,1743318884115,-150.0,0.00054795,120]
[356844816,1743318884178,-201.8629494,0.00054795,120]
[356844817,1743318884241,-500.0,0.00054795,120]
[356844818,1743318884302,-500.0,0.00054795,120]
[356844819,1743318884367,-500.0,0.00054795,120]
[356844820,1743318884429,-500.0,0.00054795,120]
[356844821,1743318884490,-500.0,0.00054795,120]
[356844822,1743318884549,-500.0,0.00054795,120]
[356844823,1743318884604,-500.0,0.00054795,120]
[356844824,1743318884660,-500.0,0.00054795,120]
[356844825,1743318884715,-500.0,0.00054795,120]
[356844826,1743318884772,-500.0,0.00054795,120]
[356844827,1743318884830,-500.0,0.00054795,120]
[356844828,1743318884885,-503.70815865,0.00054795,120]
[356844829,1743318884941,-151.74289569,0.00054795,120]
[356844830,1743318885000,-210.15216756,0.000549,120]
[356844831,1743318885075,-50000.0,0.00055,55]
[356844832,1743318885138,-2166.66801925,0.00055,120]
[356844833,1743318885196,-210.29216857,0.00055,120]
[356844834,1743318885255,-1000000.0,0.00055,120]
[356844835,1743318885314,-1006.0,0.00055,60]
[356844836,1743318885372,-650.0,0.00055,120]
[356844837,1743318885436,-2549.34,0.00055,60]
[356844838,1743318885502,-259.600136,0.00055,100]
[356844839,1743318885568,-151.01124574,0.00055342,120]
[356844840,1743318885629,-3000.0,0.0005555,45]
[356844841,1743318885697,-378.35,0.00055833,120]
[356844842,1743318885760,-279.14,0.00055833,120]
[356844843,1743318885827,-34676.03118405,0.0005598,120]
[356844844,1743318885891,-1000.0,0.00055999,120]
[356844845,1743318885958,-50000.0,0.00056,56]
[356844846,1743318886027,-200.0,0.00056,120]
[356844847,1743318886094,-226.76425718,0.00056,120]
[356844848,1743318886157,-757.20552083,0.00056,120]
[356844849,1743318886218,-276.30131266,0.000565,120]
[356844850,1743318886279,-81647.0,0.0005675,120]
[356844851,1743318886340,-25778.57,0.0005687,120]
[356844852,1743318886397,-1000.0,0.00056999,120]
[356844853,1743318886455,-50000.0,0.00057,57]
[356844854,1743318886511,-977.73011296,0.00057,120]
[356844855,1743318886568,-1034.14689233,0.00057,120]
[356844856,1743318886625,-100000.0,0.00057,120]
[356844857,1743318886678,-5000.0,0.00057,120]
[356844858,1743318886732,-1011.32519835,0.00057,90]
[356844859,1743318886798,-165.6,0.00057562,120]
[356844860,1743318886859,-2000.0,0.0005789,35]
[356844861,1743318886917,-2165.0,0.000579,71]
[356844862,1743318886971,-550.0,0.00058,120]
[356844863,1743318887031,-550.0,0.00058,120]
[356844864,1743318887093,-510.80530729,0.00058,120]
[356844865,1743318887152,-500.143,0.00058,120]
[356844866,1743318887211,-10000.0,0.00058,120]
[356844867,1743318887273,-2005.0,0.00058,100]
[356844868,1743318887331,-154.0,0.00058,120]
[356844869,1743318887391,-23394.77979436,0.00058073,120]
[356844870,1743318887450,-300.0,0.000584,120]
[356844871,1743318887656,-500.0,0.00058503,60]
[356844872,1743318887714,-150.0,0.00058537,120]
[356844873,1743318887771,-151.0,0.00058603,120]
[356844874,1743318887829,-619.21,0.00058934,120]
[356844875,1743318887889,-5334.9,0.00059,120]
[356844876,1743318887947,-510.80530729,0.00059,120]
[356844877,1743318888005,-2000.0,0.0005986,45]
[356844878,1743318888066,-5785.47462211,0.0005987,120]
[356844879,1743318888132,-1577.58195351,0.00059893,120]
[356844880,1743318888193,-5642.4594422,0.000599,120]
[356844881,1743318888254,-30009.52429569,0.000599,120]
[356844882,1743318888318,-50000.0,0.0006,60]
[356844883,1743318888374,-494.55276233,0.0006,120]
[356844884,1743318888430,-311.16306928,0.0006,120]
[356844885,1743318888488,-13042.86356594,0.0006,120]
[356844886,1743318888544,-486873.92679092,0.0006,120]
[356844887,1743318888601,-500.0,0.0006,120]
[356844888,1743318888659,-308.30321048,0.0006,120]
[356844889,1743318888723,-300.0,0.0006,120]
[356844890,1743318888786,-1000.0,0.0006,120]
[356844891,1743318888846,-700.47338451,0.0006,120]
[356844892,1743318888911,-510.80530729,0.0006,120]
[356844893,1743318888973,-10000.0,0.0006,120]
[356844894,1743318889033,-8171.81842258,0.0006,120]
[356844895,1743318889095,-500.0,0.0006,120]
[356844896,1743318889160,-519.39164517,0.0006,120]
[356844897,1743318889223,-424.87526907,0.0006,120]
[356844898,1743318889285,-5000.0,0.0006,120]
[356844899,1743318889344,-158.25340614,0.0006,120]
[356844900,1743318889402,-138204.26285862,0.0006,120]
[356844901,1743318889462,-66203.46142966,0.0006,120]
[356844902,1743318889518,-1340.1255422,0.0006,98]
[356844903,1743318889575,-3077.13,0.00060274,120]
[356844904,1743318904315,1000000.0,0.00059699,120]
[356844905,1743318904525,3273.0,0.000567,101]
[356844906,1743318907973,-151.0,0.00060712,120]
[356844907,1743318908033,-450.0,0.00061,120]
[356844908,1743318908099,-250.0,0.00061,120]
[356844909,1743318908165,-510.80530729,0.00061,120]
[356844910,1743318908364,-378.35,0.00061629,120]
[356844911,1743318908430,-279.14,0.00061629,120]
[356844912,1743318908496,-250.0,0.00062,120]
[356844913,1743318908559,-5000.0,0.00062,120]
[356844914,1743318908622,-2549.34,0.00062,60]
[356844915,1743318908688,-2000.0,0.0006296,35]
[356844916,1743318908752,-300.0,0.00063,120]
[356844917,1743318908819,-250.0,0.00063,120]
[356844918,1743318908887,-5000.0,0.00063,120]
[356844919,1743318908948,-17486.51097573,0.000634,120]
[356844920,1743318909013,-150.0,0.00063917,120]
[356844921,1743318909081,-350.0,0.00064,120]
[356844922,1743318909148,-500.0,0.00064,120]
[356844923,1743318909212,-250.0,0.00064,120]
[356844924,1743318909277,-1743.31354576,0.000649,120]
[356844925,1743318909344,-1000.0,0.00064999,120]
[356844926,1743318909407,-3011.7,0.00065,120]
[356844927,1743318909470,-300.0,0.00065,120]
[356844928,1743318909531,-250.0,0.00065,120]
[356844929,1743318909588,-151.0,0.00065397,120]
[356844930,1743318909646,-5143.04176877,0.000655,120]
[356844931,1743318929419,327.53220777,0.00044,120]
[356844932,1743318942583,-165.6,0.00065772,120]
[356844933,1743318942646,-309.825,0.00066,120]
[356844934,1743318942710,-250.0,0.00066,120]
[356844935,1743318942767,-5000.0,0.00066,120]
[356844936,1743318942825,-2005.68611827,0.00066,60]
[356844937,1743318942886,-250.0,0.00067,120]
[356844938,1743318942945,-250.0,0.00067,120]
[356844939,1743318943003,-378.35,0.00067426,120]
[356844940,1743318943063,-279.14,0.00067426,120]
[356844941,1743318943124,-2000.0,0.0006763,45]
[356844942,1743318943182,-380.0,0.00068,120]
[356844943,1743318943241,-380.0,0.00068,120]
[356844944,1743318943303,-300.0,0.00068,120]
[356844945,1743318943363,-31959.06596999,0.00068,120]
[356844946,1743318943433,-300.0,0.000684,120]
[356844947,1743318943498,-400.51,0.000685,120]
[356844948,1743318943562,-50000.0,0.000689,120]
[356844949,1743318943624,-237.97,0.00069,60]
[356844950,1743318943687,-2549.34,0.00069,60]
[356844951,1743318943752,-5000.0,0.00069,120]
[356844952,1743318943816,-150.0,0.00069297,120]
[356844953,1743318943876,-2137.0,0.0006986,45]
[356844954,1743318943937,-16687.67272985,0.000699,120]
[356844955,1743318944000,-5023.11833555,0.000699,120]
[356844956,1743318944064,-1000.0,0.00069999,120]
[356844957,1743318944127,-281.72592436,0.0007,120]
[356844958,1743318944195,-19261.35732554,0.0007,120]
[356844959,1743318944259,-150.0,0.0007,120]
[356844960,1743318944322,-500.0,0.0007,120]
[356844961,1743318944386,-360.0,0.0007,120]
[356844962,1743318944449,-300.0,0.0007,120]
[356844963,1743318944513,-300.0,0.0007,120]
[356844964,1743318944578,-500.0,0.0007,120]
[356844965,1743318944641,-2000.0,0.0007,120]
[356844966,1743318944705,-619.21,0.00070166,120]
[356844967,1743318956601,757.85,0.00045205,120]
[356844968,1743318956936,757.85,0.00045479,120]
[356844969,1743318957182,757.85,0.00045753,120]
[356844970,1743318957567,757.85,0.00046027,120]
[356844971,1743318957681,757.85,0.00046301,120]
[356844972,1743318957914,757.85,0.00046575,120]
[356844973,1743318958152,757.85,0.00046849,120]
[356844974,1743318958399,757.85,0.00047123,120]
[356844975,1743318958628,757.85,0.00047397,120]
[356844978,1743319556152,-154.06681593,0.0001489,2]
[356845016,1743319712996,159.52,0.00013699,2]
[356845017,1743319713545,159.52,0.00013699,2]
[356845018,1743319713701,159.52,0.00013699,2]
[356845019,1743319714026,16.03042011,0.00013699,2]
[356845020,1743319714054,143.48957989,0.00013699,2]
[356845021,1743319714394,159.52,0.00013699,2]
[356845022,1743319714743,159.52,0.00013699,2]
[356845023,1743319715112,159.52,0.00013699,2]
[356845024,1743319715514,159.52,0.00013699,2]
[356845025,1743319715853,159.58318224,0.00013699,2]
[356845052,1743319831748,-2854.49084463,0.0001489,2]
[356845053,1743319831761,-2701.15918308,0.000149,2]
[356845054,1743319831773,-113.5903847,0.000149,2]
[356845055,1743319831788,-46.22339585,0.000149,2]
[356845056,1743319831801,-501.11632948,0.00014973,2]
[356845057,1743319831816,-437.08493552,0.00014973,2]
[356845058,1743319831829,-2087.28033915,0.0001499,2]
[356845059,1743319831845,-1907.10288314,0.0001499,2]
[356845060,1743319831856,-11652.12,0.0001499,2]
[356845061,1743319831866,-11652.12,0.0001499,2]
[356845062,1743319831878,-247.87421836,0.00014999,2]
[356845063,1743319831889,-266.23383446,0.00014999,2]
[356845064,1743319831908,-150.0,0.00014999,2]
[356845065,1743319831918,-9115.88570073,0.00015,2]
[356845066,1743319831931,-13006.82943429,0.00015,2]
[356845067,1743319831945,-1133.11323801,0.00015,2]
[356845068,1743319831960,-963.81641169,0.00015,2]
[356845069,1743319832052,-79218.57765191,0.00015,2]
[356845070,1743319832097,-2459.81248633,0.00015,2]
[356845071,1743319832111,-419.01450556,0.00015,2]
[356845072,1743319832127,-975.09804948,0.00015,2]
[356845073,1743319832152,-1434.24613958,0.00015,2]
[356845074,1743319832166,-4592.15331119,0.00015,2]
[356845075,1743319832179,-4838.834284,0.00015,2]
[356845076,1743319832192,-1906.8639001,0.00015,2]
[356845077,1743319832211,-288.0,0.00015,2]
[356845078,1743319832224,-1386.10575894,0.00015,2]
[356845079,1743319832237,-1075.43,0.00015,2]
[356845081,1743319832251,-1620.51027677,0.00015,2]
[356845084,1743319832264,-803.28453,0.00015,2]
[356845086,1743319832279,-1028.79,0.00015,2]
[356845089,1743319832292,-750.37477044,0.00015,2]
[356845091,1743319832306,-5795.45298751,0.00015,2]
[356845095,1743319832334,-2278.85029522,0.00015,2]
[356845097,1743319832347,-9215.87563297,0.00015,2]
[356845100,1743319832361,-10173.95825475,0.00015,2]
[356845102,1743319832374,-254.33428482,0.00015,2]
[356845105,1743319832387,-718.78087629,0.00015,2]
[356845109,1743319832415,-40951.1742274,0.00015,2]
[356845647,1743319837942,-3373.07,0.00015,2]
[356845649,1743319837954,-6596.03655,0.00015,2]
[356845757,1743319840236,-2475.74452633,0.00015,2]
[356845758,1743319840274,-401219.67281124,0.00015,2]
[356845759,1743319840284,-2595502.58768793,0.00015,2]
[356845760,1743319840293,-157.0,0.00015,2]
[356845761,1743319840302,-150.0,0.000153,2]
[356845762,1743319840312,-182.0,0.00016124,2]
[356845763,1743319840321,-2701.15918304,0.00016895,2]
[356845764,1743319840330,-2701.15918304,0.00018889,2]
[356845765,1743319840340,-250.0,0.00019675,2]
[356845766,1743319840349,-216.5305851,0.000199,2]
[356845767,1743319840359,-202.56,0.0002,2]
[356845768,1743319840369,-36986.35623006,0.0002,4]
[356845769,1743319840378,-2000.0,0.0002,4]
[356845770,1743319840387,-151.38,0.0002,2]
[356845771,1743319840396,-151.38,0.0002,2]
[356845772,1743319840405,-151.38,0.0002,2]
[356845773,1743319840414,-151.38,0.0002,2]
[356845774,1743319840424,-151.38,0.0002,2]
[356845775,1743319840433,-151.38,0.0002,2]
[356845776,1743319840442,-151.38,0.0002,2]
[356845777,1743319840452,-151.38,0.0002,2]
[356845778,1743319840461,-151.38,0.0002,2]
[356845779,1743319840470,-151.38,0.0002,2]
[356845780,1743319840480,-151.38,0.0002,2]
[356845781,1743319840489,-151.38,0.0002,2]
[356845782,1743319840498,-151.38,0.0002,2]
[356845784,1743319840509,-151.38,0.0002,2]
[356845785,1743319840518,-151.38,0.0002,2]
[356845786,1743319840528,-151.38,0.0002,2]
[356845787,1743319840537,-151.38,0.0002,2]
[356845788,1743319840546,-151.38,0.0002,2]
[356845789,1743319840556,-151.38,0.0002,2]
[356845791,1743319840565,-151.38,0.0002,2]
[356845792,1743319840574,-151.38,0.0002,2]
[356845794,1743319840583,-151.38,0.0002,2]
[356845796,1743319840593,-151.38,0.0002,2]
[356845797,1743319840603,-151.38,0.0002,2]
[356845798,1743319840612,-151.38,0.0002,2]
[356845799,1743319840621,-2701.15918304,0.00020884,2]
[356845800,1743319840629,-2281.39771642,0.00021,2]
[356845801,1743319840639,-4324.71,0.00021,2]
[356845802,1743319840647,-3728.05,0.00021,2]
[356845803,1743319840656,-901.59,0.00022172,2]
[356845804,1743319840666,-600.0,0.00022295,2]
[356845805,1743319840675,-2701.15918304,0.00022878,2]
[356845806,1743319840684,-567.21,0.00023389,2]
[356845807,1743319840693,-192.19,0.00023883,2]
[356845808,1743319840702,-2123.45688955,0.00024,2]
[356845809,1743319840711,-2821.66394776,0.00024065,2]
[356845810,1743319840722,-1010.76663399,0.000241,2]
[356845811,1743319840731,-433.94796189,0.00024773,2]
[356845812,1743319840741,-572.60714031,0.00024773,2]
[356845813,1743319840750,-151.38,0.0002479,2]
[356845814,1743319840759,-151.38,0.0002479,2]
[356845815,1743319840768,-151.38,0.0002479,2]
[356845816,1743319840778,-151.38,0.0002479,2]